bitfinex/quotes_SOLUSD_20250929
["timestamp","ask_amount","ask_price","bid_price","bid_amount"]
[1759179262149,0.66,214.6,214.54,0.66]
[1759179262551,26.67,214.62,214.54,0.66]
[1759179262851,31.32940863,214.62,214.54,0.66]
[1759179263153,31.32940863,214.62,214.55,4.6609182]
[1759179263336,30.65940863,214.62,214.56,33.22]
[1759179263540,0.67,214.61,214.56,33.22]
[1759179263741,0.67,214.6,214.56,33.22]
[1759179264147,0.67,214.59,214.57,33.22]
[1759179264344,0.67,214.58,214.52,4.66157001]
[1759179264552,0.67,214.57,214.53,33.22]
[1759179265037,4.66046513,214.58,214.53,33.22]
[1759179265243,0.67,214.57,214.53,33.22]
[1759179265448,0.67,214.56,214.53,33.22]
[1759179265645,0.67,214.55,214.53,33.22]
[1759179265832,0.67,214.55,214.51,4.66177671]
[1759179266033,0.67,214.54,214.52,33.22]
[1759179266635,0.67,214.57,214.52,33.22]
[1759179266829,4.66009611,214.59,214.53,0.66]
[1759179267050,5.33009611,214.59,214.53,0.66]
[1759179267256,5.33009611,214.59,214.53,5.32115771]
[1759179267957,30.65988525,214.6,214.54,0.66]
[1759179268457,0.67,214.61,214.54,0.66]
[1759179268640,26.67,214.61,214.54,0.66]
[1759179268840,26.0,214.61,214.54,0.66]
[1759179269152,26.0,214.61,214.55,4.6609182]
[1759179269354,26.0,214.61,214.55,5.3209182]
[1759179270348,162.92913766,214.64,214.56,0.66]
[1759179270548,162.92913766,214.64,214.57,33.2]
[1759179270751,0.67,214.63,214.57,33.2]
[1759179271249,0.67,214.63,214.58,4.66026656]
[1759179271438,162.25913766,214.64,214.58,4.66026656]
[1759179271640,0.67,214.62,214.58,4.66026656]
[1759179272567,26.0,214.64,214.59,0.66]
[1759179272737,0.67,214.64,214.59,0.66]
[1759179272933,0.67,214.63,214.59,0.66]
[1759179273135,11.15287904,214.69,214.59,0.66]
[1759179273446,0.67,214.68,214.59,0.66]
[1759179274959,132.27,214.7,214.6,16.30941285]
[1759179275144,0.67,214.7,214.61,0.66]
[1759179275349,0.67,214.7,214.62,33.2]
[1759179275551,26.0,214.72,214.63,0.66]
[1759179275746,26.0,214.7,214.63,0.66]
[1759179275949,14.1098536,214.75,214.63,0.66]
[1759179276140,0.67,214.73,214.64,13.59559401]
[1759179276344,0.77,214.75,214.65,0.66]
[1759179276545,26.77,214.75,214.65,0.66]
[1759179276972,0.77,214.75,214.66,4.65852976]
[1759179277142,0.67,214.74,214.67,33.86]
[1759179278446,0.67,214.74,214.68,4.65809577]
[1759179279141,0.67,214.73,214.67,33.2]
[1759179279337,0.67,214.72,214.67,33.2]
[1759179279554,0.67,214.71,214.67,33.2]
[1759179279847,0.67,214.71,214.67,33.86]
[1759179280047,0.67,214.71,214.68,33.18]
[1759179282255,5.32680558,214.74,214.68,37.83806267]
[1759179282453,4.65680558,214.74,214.68,37.83806267]
[1759179282795,5.32704287,214.73,214.68,33.18]
[1759179282964,0.67,214.72,214.68,33.18]
[1759179287159,5.32679426,214.74,214.68,37.83806759]
[1759179287361,5.32679426,214.74,214.68,33.18]
[1759179287558,4.65679426,214.74,214.68,33.18]
[1759179287748,0.67,214.73,214.68,33.18]
[1759179287944,0.67,214.73,214.68,38.49801937]
[1759179288271,4.02127717,214.72,214.62,0.66]
[1759179288569,4.02127717,214.72,214.63,33.16]
[1759179288754,0.67,214.71,214.64,0.66]
[1759179289367,4.65766185,214.7,214.64,5.31894318]
[1759179290299,4.65735515,214.72,214.65,0.66]
[1759179290450,5.32735515,214.72,214.65,0.66]
[1759179290866,0.67,214.72,214.65,0.66]
[1759179291151,5.32723277,214.72,214.65,0.66]
[1759179291864,0.67,214.72,214.66,4.65852976]
[1759179292067,5.31699001,214.74,214.67,33.86]
[1759179292369,0.66,214.74,214.67,33.86]
[1759179292552,26.1,214.75,214.68,0.7]
[1759179292752,0.1,214.75,214.68,0.7]
[1759179292952,0.76,214.75,214.68,0.7]
[1759179293251,31.41666306,214.75,214.68,0.7]
[1759179293853,26.76,214.75,214.68,0.7]
[1759179294061,31.41658486,214.75,214.67,4.65812717]
[1759179294266,0.66,214.74,214.68,33.16]
[1759179294479,0.66,214.73,214.68,33.16]
[1759179294653,26.66,214.72,214.62,28.26683001]
[1759179294853,0.66,214.71,214.62,32.9261954]
[1759179295173,26.66,214.7,214.63,33.16]
[1759179295471,0.66,214.69,214.63,33.16]
[1759179295677,0.66,214.68,214.63,33.16]
[1759179295881,0.66,214.67,214.63,33.16]
[1759179296253,4.65823558,214.68,214.63,33.16]
[1759179296254,0.66,214.66,214.63,33.16]
[1759179296480,4.65823558,214.68,214.6,14.80268503]
[1759179296682,0.66,214.65,214.61,33.16]
[1759179296980,4.65823558,214.68,214.6,14.10268503]
[1759179296981,0.66,214.64,214.6,14.10268503]
[1759179297153,0.66,214.63,214.61,33.16]
[1759179297573,0.66,214.65,214.61,33.16]
[1759179297764,0.66,214.64,214.61,33.16]
[1759179298254,4.65893044,214.65,214.61,33.16]
[1759179298455,0.66,214.64,214.61,33.16]
[1759179298752,0.66,214.63,214.59,33.16]
[1759179299056,0.66,214.62,214.59,33.16]
[1759179299254,0.66,214.61,214.59,33.16]
[1759179299966,0.66,214.6,214.59,33.16]
[1759179300172,5.31983224,214.6,214.59,33.16]
[1759179300573,5.31983224,214.6,214.53,0.7]
[1759179300785,0.66,214.59,214.54,33.16]
[1759179301096,0.66,214.58,214.54,33.16]
[1759179302886,5.32034528,214.58,214.54,33.16]
[1759179303259,0.66,214.57,214.54,33.16]
[1759179304581,4.66070096,214.56,214.54,33.16]
[1759179304977,0.66,214.57,214.54,33.16]
[1759179305180,4.65984463,214.6,214.55,0.7]
[1759179305366,4.65984463,214.6,214.56,0.7]
[1759179305763,26.0,214.65,214.57,0.7]
[1759179305986,26.0,214.65,214.58,33.16]
[1759179305987,26.66,214.65,214.58,33.16]
[1759179306291,26.66,214.65,214.58,33.86]
[1759179306598,5.31885439,214.65,214.59,5.36004939]
[1759179306891,23.28483172,214.74,214.6,0.7]
[1759179306892,5.31766185,214.7,214.6,0.7]
[1759179307060,26.0,214.67,214.6,0.7]
[1759179307487,0.66,214.68,214.6,0.7]
[1759179308072,5.31815727,214.68,214.61,4.65961511]
[1759179308283,0.66,214.71,214.62,33.86]
[1759179308466,0.66,214.7,214.62,33.86]
[1759179308660,0.66,214.7,212.69,74.84710608]
[1759179308661,2.14216988,214.65,214.55,14.01116223]
[1759179308891,0.66,214.64,214.55,14.01116223]
[1759179309388,2.14216988,214.65,214.54,0.7]
[1759179309389,0.66,214.63,214.54,0.7]
[1759179309985,4.65961511,214.61,214.54,0.7]
[1759179310192,0.66,214.6,214.53,37.82135024]
[1759179311069,16.30865289,214.61,214.54,0.7]
[1759179311070,4.65961511,214.61,214.54,0.7]
[1759179311466,5.31961511,214.61,214.54,0.7]
[1759179312195,0.66,214.61,214.54,0.7]
[1759179312364,5.31976399,214.61,214.54,0.7]
[1759179312804,16.96880177,214.61,214.54,0.7]
[1759179313388,5.31976399,214.61,214.54,0.7]
[1759179314967,16.96880177,214.61,214.52,4.66154796]
[1759179315170,2.14216988,214.59,214.53,33.14]
[1759179315472,2.14216988,214.55,214.53,33.14]
[1759179315676,2.84216988,214.55,214.53,33.14]
[1759179316195,0.7,214.54,214.53,33.14]
[1759179316995,5.36113545,214.54,214.53,33.14]
[1759179317176,5.36113545,214.54,214.48,0.65]
[1759179317378,6.80305755,214.56,214.49,33.14]
[1759179317585,6.80305755,214.56,214.49,33.79]
[1759179318372,7.50305755,214.56,214.5,4.66200466]
[1759179319095,2.84216988,214.56,214.5,4.66200466]
[1759179319271,6.80287848,214.56,214.51,0.65]
[1759179319472,7.50287848,214.56,214.51,0.65]
[1759179319680,7.50287848,214.56,214.5,4.66200466]
[1759179320488,2.84216988,214.56,214.5,4.66200466]
[1759179320795,26.7,214.58,214.51,0.65]
[1759179320985,31.36028558,214.58,214.51,0.65]
[1759179321187,0.7,214.57,214.51,0.65]
[1759179322311,0.7,214.57,214.51,5.31165728]
[1759179324077,26.0,214.58,214.52,0.68]
[1759179324283,26.0,214.58,214.53,4.66135272]
[1759179324494,26.69,214.58,214.53,5.34135272]
[1759179324707,0.69,214.58,214.54,33.14]
[1759179324905,5.34979422,214.61,214.55,0.68]
[1759179325208,26.0,214.6,214.55,0.68]
[1759179325503,26.69,214.6,214.55,0.68]
[1759179326394,26.69,214.6,214.55,5.34075994]
[1759179326593,0.69,214.6,214.55,5.34075994]
[1759179326907,26.69,214.62,214.56,0.68]
[1759179327094,0.69,214.62,214.55,4.66075994]
[1759179327295,26.69,214.62,214.54,38.48110191]
[1759179327504,26.69,214.62,214.54,49.45394054]
[1759179327704,26.69,214.62,214.55,0.68]
[1759179328609,31.34945239,214.62,214.55,5.34080322]
[1759179330106,31.34945239,214.62,214.57,4.66048375]
[1759179330308,31.34945239,214.62,214.57,5.34048375]
[1759179330506,0.69,214.61,214.52,0.68]
[1759179330701,0.69,214.61,214.53,33.14]
[1759179331013,0.69,214.6,214.53,33.14]
[1759179331209,0.69,214.6,214.54,0.68]
[1759179331712,0.69,214.6,214.55,4.6609182]
[1759179331908,4.65967,214.61,214.55,4.6609182]
[1759179332113,26.69,214.62,214.55,4.6609182]
[1759179332299,26.69,214.62,214.56,0.68]
[1759179332692,0.69,214.62,214.56,0.68]
[1759179333091,2.14216988,214.61,214.5,0.68]
[1759179333322,0.69,214.6,214.5,14.01443487]
[1759179333612,0.69,214.6,214.51,38.48178656]
[1759179333613,26.0,214.58,214.51,38.48178656]
[1759179333817,0.69,214.57,214.51,33.14]
[1759179334121,0.69,214.56,214.51,33.14]
[1759179334329,0.69,214.55,214.51,33.14]
[1759179334687,0.69,214.54,214.51,33.14]
[1759179335621,5.35119909,214.54,214.51,33.14]
[1759179336699,0.69,214.54,214.51,33.14]
[1759179338490,4.66096486,214.55,214.51,33.14]
[1759179338694,5.35096486,214.55,214.51,33.14]
[1759179339206,5.35096486,214.55,214.45,26.0]
[1759179339207,0.69,214.54,214.45,26.0]
[1759179339410,0.69,214.53,214.44,0.68]
[1759179339606,16.31549505,214.52,214.45,33.14]
[1759179339803,0.69,214.51,214.45,33.14]
[1759179340014,0.69,214.5,214.45,33.14]
[1759179340396,0.69,214.49,214.45,33.14]
[1759179340597,0.69,214.48,214.42,14.02903226]
[1759179340826,0.69,214.48,214.43,33.14]
[1759179341397,0.69,214.48,214.43,33.82]
[1759179342325,0.69,214.47,214.43,33.14]
[1759179342525,4.6624962,214.48,214.43,33.82]
[1759179342708,0.69,214.47,214.43,33.14]
[1759179342908,0.69,214.46,214.4,0.2]
[1759179343104,0.69,214.46,214.41,33.14]
[1759179343422,0.69,214.45,214.41,33.14]
[1759179343917,4.66330908,214.44,214.41,33.14]
[1759179345221,26.0,214.48,214.42,0.68]
[1759179345424,27.05366897,214.57,214.41,33.14]
[1759179345425,4.66135272,214.53,214.41,37.80390345]
[1759179345721,0.69,214.52,214.43,0.68]
[1759179345912,4.66178732,214.51,214.43,5.34350649]
[1759179346110,0.69,214.5,214.43,0.68]
[1759179346325,0.69,214.5,214.41,33.14]
[1759179346528,0.69,214.49,214.42,33.14]
[1759179346705,0.69,214.48,214.42,33.14]
[1759179347019,26.69,214.48,214.42,33.14]
[1759179347209,0.69,214.47,214.42,33.14]
[1759179347407,0.69,214.46,214.4,0.88]
[1759179347634,0.69,214.46,214.41,33.14]
[1759179347920,0.69,214.46,214.41,33.82]
[1759179349023,136.2628165,214.47,214.41,33.14]
[1759179349225,136.9528165,214.47,214.41,33.14]
[1759179349427,131.6,214.47,214.42,0.68]
[1759179349612,0.69,214.56,214.43,13.59559401]
[1759179349815,0.69,214.56,214.45,13.59559401]
[1759179350020,0.69,214.56,214.46,33.82]
[1759179350222,26.0,214.55,214.47,0.68]
[1759179350608,4.66113545,214.54,214.47,5.34246219]
[1759179350929,4.66113545,214.54,214.48,0.68]
[1759179351421,4.66092209,214.55,214.48,0.68]
[1759179351726,30.66092209,214.55,214.48,0.68]
[1759179352809,30.66092209,214.55,214.48,5.34227126]
[1759179353717,26.0,214.55,214.48,5.34227126]
[1759179353915,30.66097682,214.55,214.48,5.34227126]
[1759179354224,31.37097682,214.55,214.48,5.34227126]
[1759179355531,0.71,214.54,214.47,4.66262826]
[1759179356233,0.71,214.54,214.47,5.33262826]
[1759179358032,5.37126591,214.54,214.47,5.33262826]
[1759179358732,26.71,214.56,214.48,0.67]
[1759179358912,0.71,214.53,214.47,4.66262826]
[1759179359105,0.71,214.53,214.47,5.33262826]
[1759179359615,0.71,214.53,214.42,13.59559401]
[1759179359616,0.71,214.52,214.44,0.67]
[1759179359808,4.66178732,214.51,214.45,33.14]
[1759179360011,0.71,214.5,214.45,33.14]
[1759179360207,0.71,214.49,214.41,0.67]
[1759179360429,5.37178732,214.51,214.44,33.14]
[1759179360604,4.66178732,214.51,214.44,33.81]
[1759179360808,0.71,214.5,214.44,33.14]
[1759179361009,16.31625564,214.51,214.44,33.14]
[1759179361334,0.71,214.49,214.44,33.14]
[1759179362124,5.37243938,214.48,214.44,33.14]
[1759179362515,5.37243938,214.48,214.42,5.33371239]
[1759179362817,5.37243938,214.48,214.43,33.14]
[1759179363029,5.37243938,214.48,214.43,33.81]
[1759179363631,29.35155742,214.54,214.44,0.67]
[1759179363838,0.71,214.51,214.44,0.67]
[1759179364020,26.71,214.51,214.44,5.3331046]
[1759179364217,0.71,214.51,214.44,5.3331046]
[1759179364545,0.71,214.53,214.45,0.67]
[1759179364719,5.37136065,214.53,214.45,0.67]
[1759179365927,5.37136065,214.53,214.46,4.66287419]
[1759179366311,5.37136065,214.53,214.46,5.33287419]
[1759179368539,0.71,214.53,214.46,16.99005967]
[1759179368710,5.37137715,214.53,214.46,16.99005967]
[1759179369740,26.0,214.54,214.47,0.67]
[1759179369947,26.71,214.54,214.47,0.67]
[1759179370316,0.71,214.56,214.48,16.31853785]
[1759179370512,0.71,214.56,214.49,33.79]
[1759179371434,0.71,214.56,214.5,5.33200466]
[1759179372015,169.25049797,214.59,214.51,0.67]
[1759179372016,131.6,214.59,214.51,0.67]
[1759179372215,5.36965196,214.61,214.51,0.67]
[1759179372914,4.65896384,214.64,214.52,13.59559401]
[1759179373114,0.71,214.63,214.53,0.67]
[1759179373331,0.71,214.63,214.54,33.12]
[1759179373640,0.71,214.63,214.55,16.9832137]
[1759179373839,0.71,214.63,214.55,16.3132137]
[1759179374036,5.36922786,214.63,214.56,0.67]
[1759179374724,0.71,214.63,214.56,0.67]
[1759179374938,4.65886658,214.65,214.56,0.67]
[1759179374939,5.36886658,214.65,214.56,0.67]
[1759179375123,31.36886658,214.65,214.56,0.67]
[1759179375324,5.36886658,214.65,214.56,0.67]
[1759179375532,5.36886658,214.65,214.57,4.66048375]
[1759179375840,0.71,214.65,214.57,4.66048375]
[1759179376024,0.71,214.65,214.58,0.69]
[1759179376233,5.36874702,214.65,214.58,0.69]
[1759179376429,5.36874702,214.65,214.57,5.35048375]
[1759179376746,0.67,214.64,214.57,5.35048375]
[1759179377045,0.67,214.64,214.58,0.69]
[1759179377426,0.67,214.64,214.57,4.66048375]
[1759179377734,0.67,214.64,214.57,5.35048375]
[1759179377936,0.67,214.64,214.57,4.66048375]
[1759179378138,0.67,214.64,214.58,0.69]
[1759179378944,5.32896387,214.64,214.57,4.66048375]
[1759179379737,0.67,214.67,214.58,26.69]
[1759179379944,0.67,214.67,214.59,0.69]
[1759179380129,0.67,214.67,214.6,33.1]
[1759179380443,0.67,214.67,214.6,33.79]
[1759179380848,0.67,214.67,214.61,0.69]
[1759179381922,5.32836046,214.67,214.61,5.34950774]
[1759179383945,4.65836046,214.67,214.6,37.75981394]
[1759179384151,0.65,214.66,214.59,14.74553166]
[1759179384352,0.65,214.65,214.6,33.1]
[1759179384531,0.65,214.64,214.6,33.1]
[1759179385141,4.65836046,214.67,214.6,37.75970501]
[1759179385447,5.30860281,214.66,214.6,37.75970501]
[1759179385650,0.65,214.65,214.59,14.06553166]
[1759179385857,0.65,214.64,214.6,33.1]
[1759179386150,0.65,214.63,214.6,33.1]
[1759179386321,0.65,214.62,214.6,33.1]
[1759179386728,5.30943384,214.62,214.6,33.1]
[1759179387028,0.65,214.61,214.58,33.1]
[1759179387228,0.65,214.6,214.58,33.1]
[1759179387440,0.65,214.59,214.58,33.1]
[1759179388035,0.65,214.59,214.53,4.66135272]
[1759179388253,0.65,214.58,214.54,33.1]
[1759179388552,19.65948627,214.62,214.54,33.1]
[1759179388553,0.65,214.57,214.54,33.1]
[1759179388946,0.65,214.56,214.54,33.1]
[1759179389331,0.65,214.58,214.54,33.1]
[1759179389531,4.66004264,214.6,214.54,33.1]
[1759179389532,0.65,214.57,214.54,33.1]
[1759179390158,0.65,214.59,214.54,37.76112873]
[1759179390345,0.65,214.58,214.54,37.76112873]
[1759179390650,4.66004264,214.6,214.54,37.76112873]
[1759179390853,0.65,214.57,214.54,33.1]
[1759179391055,0.65,214.57,214.55,33.1]
[1759179391255,5.31056048,214.57,214.55,33.1]
[1759179391431,0.65,214.56,214.48,0.68]
[1759179391634,4.00155742,214.56,214.46,14.08947145]
[1759179391836,3.35155742,214.53,214.47,33.1]
[1759179392053,0.65,214.52,214.47,33.1]
[1759179392362,0.65,214.51,214.47,33.1]
[1759179392942,5.31193369,214.51,214.47,33.1]
[1759179393143,0.65,214.5,214.47,33.1]
[1759179393340,0.65,214.49,214.42,0.68]
[1759179393666,0.65,214.55,214.43,33.1]
[1759179393846,26.65,214.55,214.44,0.68]
[1759179394758,31.31107321,214.55,214.44,0.68]
[1759179394939,5.31107321,214.55,214.45,4.66309162]
[1759179395142,5.31107321,214.55,214.46,0.68]
[1759179395367,5.31107321,214.55,214.46,14.27559401]
[1759179395368,0.65,214.55,214.46,14.27559401]
[1759179395634,31.31028339,214.58,214.47,0.68]
[1759179395861,31.31028339,214.58,214.48,33.1]
[1759179396068,5.31028339,214.58,214.49,0.68]
[1759179396360,31.31028339,214.58,214.49,0.68]
[1759179396945,5.31028339,214.58,214.5,4.66200466]
[1759179397148,5.31028339,214.58,214.5,5.34200466]
[1759179398058,4.66028339,214.58,214.5,5.34200466]
[1759179398265,0.65,214.57,214.5,4.66200466]
[1759179398466,0.65,214.56,214.5,4.66200466]
[1759179398672,0.65,214.55,214.5,4.66200466]
[1759179398968,0.65,214.54,214.5,4.66200466]
[1759179399273,0.65,214.53,214.48,38.44229478]
[1759179399435,0.65,214.53,214.48,37.76229478]
[1759179399638,0.65,214.53,214.49,0.68]
[1759179400059,0.65,214.55,214.49,0.68]
[1759179401567,0.65,214.55,214.5,4.66200466]
[1759179401754,0.65,214.55,214.5,5.34200466]
[1759179404064,4.66051499,214.57,214.51,0.68]
[1759179404269,5.31051499,214.57,214.51,0.68]
[1759179404769,4.66005903,214.59,214.51,0.68]
[1759179404972,0.65,214.58,214.51,0.68]
[1759179405974,5.31037238,214.58,214.52,4.66157001]
[1759179406268,5.31037238,214.58,214.53,33.08]
[1759179406450,0.65,214.57,214.53,33.08]
[1759179409766,132.25,214.6,214.54,0.68]
[1759179409958,131.6,214.6,214.54,0.68]
[1759179410870,0.65,214.62,214.55,4.6609182]
[1759179411073,0.65,214.62,214.55,5.3409182]
[1759179411450,0.65,214.62,214.56,0.67]
[1759179411667,0.65,214.62,214.57,33.08]
[1759179411849,0.65,214.62,214.57,38.41032308]
[1759179412373,0.72,214.61,214.56,33.08]
[1759179412550,0.72,214.6,214.55,33.08]
[1759179412753,0.72,214.59,214.55,33.08]
[1759179412954,0.72,214.58,214.55,33.08]
[1759179416652,4.659398,214.62,214.55,33.08]
[1759179416976,0.72,214.61,214.55,33.08]
[1759179417264,0.72,214.6,214.55,33.08]
[1759179417464,0.72,214.59,214.55,33.08]
[1759179417889,0.72,214.58,214.55,33.08]
[1759179419162,0.72,214.58,214.55,47.09705408]
[1759179419862,5.37982299,214.61,214.56,0.67]
[1759179420067,0.13,214.62,214.57,0.67]
[1759179420269,4.78942293,214.62,214.58,0.67]
[1759179420470,5.50942293,214.62,214.59,33.08]
[1759179420664,0.13,214.62,214.59,33.08]
[1759179420868,0.13,214.62,214.6,0.67]
[1759179421371,0.13,214.62,214.59,38.40991789]
[1759179421576,0.13,214.62,214.6,14.68312563]
[1759179421951,0.13,214.62,214.61,0.67]
[1759179423588,0.13,214.62,214.61,5.32961511]
[1759179424277,0.13,214.62,214.61,19.34143174]
[1759179424571,0.13,214.62,214.61,14.01181663]
[1759179424962,0.13,214.62,214.61,19.34143174]
[1759179425381,0.13,214.62,214.61,18.67143174]
[1759179425972,0.13,214.62,214.61,14.01181663]
[1759179426473,0.13,214.62,214.61,13.53037617]
[1759179428985,0.13,214.62,214.61,4.65864376]
[1759179429286,0.13,214.62,214.61,37.71864376]
[1759179429667,0.13,214.62,214.61,42.37825887]
[1759179429870,0.13,214.62,214.61,37.71864376]
[1759179430069,0.13,214.62,214.61,42.37825887]
[1759179431371,0.13,214.62,214.61,43.04825887]
[1759179431770,0.13,214.62,214.61,42.37825887]
[1759179432667,0.13,214.62,214.61,57.14748625]
[1759179433892,0.13,214.62,214.61,70.74308026]
[1759179447005,0.13,214.62,214.61,70.07308026]
[1759179447601,0.13,214.62,214.61,56.47748625]
[1759179447602,0.79,214.62,214.61,56.47748625]
[1759179447933,0.79,214.62,214.61,18.75787114]
[1759179448105,0.79,214.62,214.61,47.11922738]
[1759179448282,0.79,214.62,214.61,33.02]
[1759179448477,0.79,214.62,214.57,14.01312563]
[1759179448797,0.66,214.61,214.58,33.02]
[1759179449101,0.66,214.6,214.58,46.93493783]
[1759179449298,0.66,214.59,214.58,46.93493783]
[1759179449495,0.66,214.59,214.58,13.91493783]
[1759179449704,0.66,214.59,214.58,33.02]
[1759179449899,0.66,214.59,214.56,18.67372781]
[1759179449900,0.66,214.59,214.56,14.01312563]
[1759179450099,0.66,214.58,214.57,33.02]
[1759179450897,0.13,214.62,214.57,33.02]
[1759179450898,0.66,214.61,214.57,33.02]
[1759179451694,0.66,214.6,214.57,33.02]
[1759179453412,0.66,214.59,214.57,33.02]
[1759179453599,0.66,214.58,214.57,33.02]
[1759179453798,0.66,214.58,214.55,14.09336573]
[1759179454005,0.66,214.57,214.56,33.02]
[1759179455316,0.66,214.59,214.56,33.02]
[1759179455494,0.66,214.61,214.56,37.68066998]
[1759179455826,0.66,214.6,214.56,33.02]
[1759179456124,0.66,214.59,214.56,33.02]
[1759179456423,0.66,214.58,214.56,33.02]
[1759179456623,16.43800598,214.62,214.57,33.02]
[1759179457327,0.66,214.61,214.57,33.02]
[1759179457528,5.31983224,214.6,214.57,33.02]
[1759179457703,0.66,214.59,214.57,33.02]
[1759179457905,0.66,214.58,214.57,33.02]
[1759179458725,0.66,214.58,214.51,14.01639919]
[1759179458932,16.30941285,214.6,214.52,33.02]
[1759179459227,0.66,214.59,214.52,33.02]
[1759179459405,0.66,214.58,214.52,33.02]
[1759179459606,5.32048375,214.57,214.52,33.02]
[1759179459818,0.66,214.56,214.52,37.6815591]
[1759179460002,5.32048375,214.57,214.52,38.3415591]
[1759179460317,0.66,214.56,214.52,33.02]
[1759179460691,0.66,214.56,214.52,37.6815296]
[1759179460896,0.66,214.58,214.52,38.3415296]
[1759179462030,5.32031205,214.58,214.52,38.3415296]
[1759179462320,0.66,214.57,214.53,33.02]
[1759179462698,0.66,214.56,214.53,33.02]
[1759179463729,0.66,214.59,214.53,38.3412934]
[1759179464826,11.77857264,214.62,214.53,43.00115677]
[1759179465024,0.66,214.61,214.53,43.00115677]
[1759179465325,0.66,214.6,214.53,38.3412934]
[1759179465626,0.13,214.62,214.53,49.33467521]
[1759179465815,0.79,214.62,214.54,0.66]
[1759179466018,0.13,214.62,214.54,14.67443486]
[1759179466215,0.13,214.62,214.55,0.66]
[1759179466524,0.13,214.62,214.56,33.02]
[1759179466746,0.13,214.62,214.56,33.68]
[1759179466919,0.13,214.62,214.57,4.66048375]
[1759179467106,4.78943901,214.62,214.56,33.68]
[1759179467431,0.66,214.61,214.57,33.02]
[1759179467603,4.78943901,214.62,214.53,12.31338181]
[1759179467604,0.66,214.6,214.54,4.66113545]
[1759179467805,0.66,214.6,214.55,33.02]
[1759179468029,0.66,214.59,214.55,33.02]
[1759179468814,5.44943901,214.62,214.57,4.66048375]
[1759179469011,5.44943901,214.62,214.58,33.02]
[1759179469214,0.66,214.61,214.58,33.02]
[1759179470118,5.31968735,214.61,214.58,33.02]
[1759179470311,0.66,214.6,214.58,33.02]
[1759179471331,4.65968735,214.61,214.58,33.02]
[1759179471528,5.34968735,214.61,214.58,33.02]
[1759179472029,5.34988055,214.6,214.58,33.02]
[1759179472232,0.13,214.62,214.58,33.02]
[1759179472421,0.69,214.61,214.58,33.02]
[1759179473334,4.78949187,214.62,214.58,33.02]
[1759179473515,5.47949187,214.62,214.58,33.74]
[1759179473831,4.78949187,214.62,214.58,33.02]
[1759179474036,5.3497672,214.61,214.58,33.02]
[1759179476632,0.69,214.61,214.58,33.02]
[1759179477036,5.34968635,214.61,214.58,33.02]
[1759179480341,0.69,214.61,214.58,33.02]
[1759179480515,5.34969155,214.61,214.58,33.02]
[1759179481337,0.69,214.61,214.58,33.02]
[1759179482122,0.13,214.62,214.58,33.02]